fUST/lending_fUST_20241117
["ID","MTS","AMOUNT","RATE_DAILY","PERIOD"]
[342430344,1731853843385,-1000.0,0.00019452,2]
[342430346,1731853843397,-1000.0,0.00019452,2]
[342430347,1731853843408,-1000.0,0.00019452,2]
[342430348,1731853843417,-1000.0,0.00019452,2]
[342430349,1731853843427,-1000.0,0.00019452,2]
[342430350,1731853843438,-1000.0,0.00019452,2]
[342430351,1731853843448,-1000.0,0.00019452,2]
[342430352,1731853843458,-1000.0,0.00019452,2]
[342430353,1731853843468,-339.525446,0.00019452,2]
[342430355,1731853843478,-500.0,0.00019452,2]
[342430357,1731853843487,-324.76350395,0.00019452,2]
[342430358,1731853843497,-202.96327716,0.00019452,2]
[342430360,1731853843508,-500.0,0.00019452,2]
[342430361,1731853843518,-500.0,0.00019452,2]
[342430362,1731853843528,-694.51,0.00019452,2]
[342430363,1731853843538,-500.0,0.00019452,2]
[342430364,1731853843548,-500.0,0.00019452,2]
[342430365,1731853843558,-500.0,0.00019452,2]
[342430366,1731853843568,-500.0,0.00019452,2]
[342430367,1731853843578,-507.93,0.00019452,2]
[342430368,1731853843588,-626.12144879,0.00019452,2]
[342430369,1731853843598,-500.0,0.00019452,2]
[342430370,1731853843608,-725.35,0.00019452,2]
[342430371,1731853843618,-500.0,0.00019452,2]
[342430372,1731853843628,-679.0,0.00019452,2]
[342430373,1731853843641,-267.83,0.00019452,2]
[342430374,1731853843652,-500.0,0.00019452,2]
[342430375,1731853843663,-500.0,0.00019452,2]
[342430377,1731853843673,-500.0,0.00019452,2]
[342430378,1731853843682,-1371.02,0.00019452,2]
[342430379,1731853843692,-500.0,0.00019452,2]
[342430380,1731853843702,-500.0,0.00019452,2]
[342430381,1731853843712,-552.24049097,0.00019452,2]
[342430382,1731853843721,-500.0,0.00019452,2]
[342430383,1731853843731,-500.0,0.00019452,2]
[342430384,1731853843741,-500.0,0.00019452,2]
[342430385,1731853843750,-225.31708021,0.00019452,2]
[342430386,1731853843761,-542.21,0.00019452,2]
[342430387,1731853843772,-500.0,0.00019452,2]
[342430388,1731853843782,-500.0,0.00019452,2]
[342430389,1731853843791,-500.0,0.00019452,2]
[342430390,1731853843801,-500.0,0.00019452,2]
[342430391,1731853843810,-500.0,0.00019452,2]
[342430392,1731853843820,-500.0,0.00019452,2]
[342430393,1731853843830,-500.0,0.00019452,2]
[342430394,1731853843840,-500.0,0.00019452,2]
[342430395,1731853843851,-500.0,0.00019452,2]
[342430396,1731853843861,-500.0,0.00019452,2]
[342430397,1731853843871,-500.0,0.00019452,2]
[342430398,1731853843880,-500.0,0.00019452,2]
[342430399,1731853843893,-500.0,0.00019452,2]
[342430400,1731853843903,-500.0,0.00019452,2]
[342430401,1731853843915,-557.82,0.00019452,2]
[342430402,1731853843928,-500.0,0.00019452,2]
[342430403,1731853843938,-500.0,0.00019452,2]
[342430404,1731853843948,-831.47,0.00019452,2]
[342430405,1731853843958,-500.0,0.00019452,2]
[342430406,1731853843970,-500.0,0.00019452,2]
[342430407,1731853843980,-500.0,0.00019452,2]
[342430408,1731853843991,-625.34057163,0.00019452,2]
[342430409,1731853844000,-500.0,0.00019452,2]
[342430410,1731853844010,-500.0,0.00019452,2]
[342430411,1731853844019,-500.0,0.00019452,2]
[342430412,1731853844029,-500.0,0.00019452,2]
[342430413,1731853844038,-167.7182728,0.00019452,2]
[342430414,1731853844048,-500.0,0.00019452,2]
[342430415,1731853844058,-500.0,0.00019452,2]
[342430416,1731853844067,-350.04065723,0.00019452,2]
[342430417,1731853844077,-500.0,0.00019452,2]
[342430418,1731853844087,-1437.21,0.00019452,2]
[342430419,1731853844097,-548.48152744,0.00019452,2]
[342430420,1731853844107,-500.0,0.00019452,2]
[342430421,1731853844117,-500.0,0.00019452,2]
[342430422,1731853844126,-500.0,0.00019452,2]
[342430423,1731853844138,-1349.38,0.00019452,2]
[342430424,1731853844147,-500.0,0.00019452,2]
[342430425,1731853844157,-550.43953484,0.00019452,2]
[342430426,1731853844167,-500.0,0.00019452,2]
[342430427,1731853844178,-1204.03,0.00019452,2]
[342430428,1731853844259,-560.32,0.00019452,2]
[342430429,1731853844268,-500.0,0.00019452,2]
[342430430,1731853844279,-356.68902108,0.00019452,2]
[342430431,1731853844348,-500.0,0.00019173,2]
[342430432,1731853844358,-143.31097892,0.00019452,2]
[342430433,1731853844367,-550.97,0.00019452,2]
[342430434,1731853844377,-703.01,0.00019452,2]
[342430435,1731853844387,-360.20902108,0.00019452,2]
[342430436,1731853844966,-224.85380169,0.00019177,2]
[342430437,1731853844975,-267.83781239,0.00019177,2]
[342430438,1731853844988,-73.41404347,0.00019177,2]
[342430439,1731853844997,-13449.08595653,0.00019178,2]
[342430440,1731853845009,-1369.14645786,0.00019178,2]
[342430441,1731853845020,-3074.72196477,0.00019178,2]
[342430442,1731853845032,-28390.73562084,0.00019178,2]
[342430443,1731853845042,-139.79097892,0.00019452,2]
[342430444,1731853845051,-500.0,0.00019452,2]
[342430445,1731853845060,-544.27,0.00019452,2]
[342430446,1731853845069,-666.89,0.00019452,2]
[342430447,1731853845079,-582.58,0.00019452,2]
[342430448,1731853845088,-500.0,0.00019452,2]
[342430449,1731853845097,-481.37685419,0.00019452,2]
[342430450,1731853845106,-500.0,0.00019452,2]
[342430451,1731853845115,-500.0,0.00019452,2]
[342430452,1731853845124,-1653.11,0.00019452,2]
[342430453,1731853845133,-346.21434875,0.00019452,2]
[342430454,1731853845146,-500.0,0.00019452,2]
[342430455,1731853845155,-203.823523,0.00019452,2]
[342430456,1731853845164,-203.823523,0.00019452,2]
[342430457,1731853845173,-203.823523,0.00019452,2]
[342430458,1731853845183,-500.0,0.00019452,2]
[342430459,1731853845191,-203.823523,0.00019452,2]
[342430460,1731853845200,-203.823523,0.00019452,2]
[342430461,1731853845209,-203.823523,0.00019452,2]
[342430462,1731853845218,-203.823523,0.00019452,2]
[342430463,1731853845227,-203.823523,0.00019452,2]
[342430464,1731853845236,-203.823523,0.00019452,2]
[342430465,1731853845245,-203.823519,0.00019452,2]
[342430466,1731853845254,-266.36290757,0.00019452,2]
[342430467,1731853845262,-545.98,0.00019452,2]
[342430468,1731853845271,-891.09,0.00019452,2]
[342430469,1731853845280,-1933.68,0.00019452,2]
[342430470,1731853845289,-552.13,0.00019452,2]
[342430471,1731853845298,-799.64,0.00019452,2]
[342430472,1731853845308,-531.03434141,0.00019452,2]
[342430473,1731853845318,-500.0,0.00019452,2]
[342430474,1731853845327,-554.61,0.00019452,2]
[342430475,1731853845336,-500.0,0.00019452,2]
[342430476,1731853845346,-785.79,0.00019452,2]
[342430477,1731853845355,-359.70715699,0.00019452,2]
[342430478,1731853845365,-500.0,0.00019452,2]
[342430479,1731853845375,-2420.08,0.00019452,2]
[342430480,1731853845384,-222.75978104,0.00019452,2]
[342430481,1731853845400,-544.1,0.00019452,2]
[342430482,1731853845409,-1494.39,0.00019452,2]
[342430483,1731853845418,-500.0,0.00019452,2]
[342430484,1731853845427,-500.0,0.00019452,2]
[342430485,1731853845436,-500.0,0.00019452,2]
[342430486,1731853845446,-1088.89,0.00019452,2]
[342430487,1731853845455,-500.0,0.00019452,2]
[342430488,1731853845464,-1315.63,0.00019452,2]
[342430489,1731853845475,-500.0,0.00019452,2]
[342430490,1731853845484,-500.0,0.00019452,2]
[342430491,1731853845493,-500.0,0.00019452,2]
[342430492,1731853845503,-500.0,0.00019452,2]
[342430493,1731853845512,-500.0,0.00019452,2]
[342430494,1731853845522,-500.0,0.00019452,2]
[342430495,1731853845531,-500.0,0.00019452,2]
[342430496,1731853845539,-500.0,0.00019452,2]
[342430497,1731853845549,-500.0,0.00019452,2]
[342430498,1731853845558,-271.14398066,0.00019452,2]
[342430499,1731853845567,-304.698656,0.00019452,2]
[342430500,1731853845576,-304.698656,0.00019452,2]
[342430501,1731853845586,-304.698656,0.00019452,2]
[342430502,1731853845595,-304.698656,0.00019452,2]
[342430503,1731853845605,-304.698656,0.00019452,2]
[342430504,1731853845614,-500.0,0.00019452,2]
[342430505,1731853845623,-304.698656,0.00019452,2]
[342430506,1731853845632,-304.698656,0.00019452,2]
[342430507,1731853845645,-304.698656,0.00019452,2]
[342430508,1731853845654,-304.698656,0.00019452,2]
[342430509,1731853845663,-304.698663,0.00019452,2]
[342430510,1731853845671,-782.19,0.00019452,2]
[342430511,1731853845679,-569.91,0.00019452,2]
[342430512,1731853845689,-626.98,0.00019452,2]
[342430513,1731853845698,-500.0,0.00019452,2]
[342430514,1731853845707,-500.0,0.00019452,2]
[342430515,1731853845718,-1311.24,0.00019452,2]
[342430516,1731853845728,-500.0,0.00019452,2]
[342430517,1731853845737,-500.0,0.00019452,2]
[342430518,1731853845746,-500.0,0.00019452,2]
[342430519,1731853845755,-775.52,0.00019452,2]
[342430520,1731853845765,-500.0,0.00019452,2]
[342430521,1731853845774,-500.0,0.00019452,2]
[342430522,1731853845783,-500.0,0.00019452,2]
[342430523,1731853845791,-500.0,0.00019452,2]
[342430524,1731853845800,-500.0,0.00019452,2]
[342430525,1731853845809,-500.0,0.00019452,2]
[342430526,1731853845818,-500.0,0.00019452,2]
[342430527,1731853845827,-500.0,0.00019452,2]
[342430528,1731853845836,-500.0,0.00019452,2]
[342430529,1731853845845,-500.0,0.00019452,2]
[342430530,1731853845854,-678.68,0.00019452,2]
[342430531,1731853845864,-500.0,0.00019452,2]
[342430532,1731853845873,-2678.34,0.00019452,2]
[342430533,1731853845882,-500.0,0.00019452,2]
[342430534,1731853845894,-500.0,0.00019452,2]
[342430535,1731853845903,-544.43,0.00019452,2]
[342430536,1731853845913,-516.06,0.00019452,2]
[342430537,1731853845922,-500.0,0.00019452,2]
[342430538,1731853845932,-572.51839263,0.00019452,2]
[342430539,1731853845942,-500.0,0.00019452,2]
[342430540,1731853845951,-581.8810756,0.00019452,2]
[342430541,1731853845961,-1735.81,0.00019452,2]
[342430542,1731853845971,-500.0,0.00019452,2]
[342430543,1731853845980,-500.0,0.00019452,2]
[342430544,1731853845989,-500.0,0.00019452,2]
[342430545,1731853846002,-248.553844,0.00019452,2]
[342430546,1731853846013,-153.683452,0.00019452,2]
[342430547,1731853846023,-500.0,0.00019452,2]
[342430548,1731853846032,-858.47,0.00019452,2]
[342430549,1731853846041,-612.92,0.00019452,2]
[342430550,1731853846050,-500.0,0.00019452,2]
[342430551,1731853846059,-1874.84,0.00019452,2]
[342430552,1731853846068,-500.0,0.00019452,2]
[342430554,1731853846076,-500.0,0.00019452,2]
[342430555,1731853846085,-1074.88,0.00019452,2]
[342430556,1731853846094,-815.43,0.00019452,2]
[342430557,1731853846103,-500.0,0.00019452,2]
[342430558,1731853846112,-870.49,0.00019452,2]
[342430560,1731853846121,-342.21135336,0.00019452,2]
[342430561,1731853846130,-500.0,0.00019452,2]
[342430562,1731853846142,-500.0,0.00019452,2]
[342430563,1731853846152,-1456.59,0.00019452,2]
[342430564,1731853846161,-500.0,0.00019452,2]
[342430565,1731853846170,-816.29,0.00019452,2]
[342430566,1731853846179,-632.74,0.00019452,2]
[342430567,1731853846187,-1410.12,0.00019452,2]
[342430569,1731853846197,-1555.32,0.00019452,2]
[342430571,1731853846207,-511.96401265,0.00019452,2]
[342430572,1731853846216,-500.0,0.00019452,2]
[342430573,1731853846225,-1421.11,0.00019452,2]
[342430574,1731853846235,-500.0,0.00019452,2]
[342430575,1731853846244,-500.0,0.00019452,2]
[342430576,1731853846253,-789.97,0.00019452,2]
[342430577,1731853846262,-826.95,0.00019452,2]
[342430578,1731853846271,-151.0,0.00019452,2]
[342430580,1731853846280,-578.061145,0.00019452,2]
[342430582,1731853846290,-151.0,0.00019452,2]
[342430584,1731853846300,-151.0,0.00019452,2]
[342430585,1731853846308,-151.0,0.00019452,2]
[342430587,1731853846316,-500.0,0.00019452,2]
[342430588,1731853846322,-156.130178,0.00019452,2]
[342430589,1731853846330,-1149.91,0.00019452,2]
[342430590,1731853846340,-500.0,0.00019452,2]
[342430591,1731853846348,-151.0,0.00019452,2]
[342430592,1731853846357,-768.37,0.00019452,2]
[342430593,1731853846366,-500.0,0.00019452,2]
[342430595,1731853846375,-151.0,0.00019452,2]
[342430596,1731853846384,-151.0,0.00019452,2]
[342430597,1731853846401,-151.0,0.00019452,2]
[342430598,1731853846410,-151.0,0.00019452,2]
[342430599,1731853846420,-500.0,0.00019452,2]
[342430600,1731853846429,-500.0,0.00019452,2]
[342430601,1731853846438,-2336.0,0.00019452,2]
[342430602,1731853846448,-578.01,0.00019452,2]
[342430603,1731853846457,-500.0,0.00019452,2]
[342430604,1731853846466,-500.0,0.00019452,2]
[342430605,1731853846476,-500.0,0.00019452,2]
[342430606,1731853846486,-500.0,0.00019452,2]
[342430607,1731853846495,-599.58,0.00019452,2]
[342430608,1731853846504,-500.0,0.00019452,2]
[342430609,1731853846513,-1219.71,0.00019452,2]
[342430610,1731853846522,-500.0,0.00019452,2]
[342430611,1731853846531,-500.0,0.00019452,2]
[342430612,1731853846542,-500.0,0.00019452,2]
[342430613,1731853846551,-500.0,0.00019452,2]
[342430614,1731853846560,-641.7,0.00019452,2]
[342430615,1731853846570,-500.0,0.00019452,2]
[342430616,1731853846579,-1308.67,0.00019452,2]
[342430617,1731853846589,-500.0,0.00019452,2]
[342430618,1731853846600,-500.0,0.00019452,2]
[342430619,1731853846609,-673.37,0.00019452,2]
[342430621,1731853846619,-857.67,0.00019452,2]
[342430623,1731853846628,-1381.91,0.00019452,2]
[342430624,1731853846643,-500.0,0.00019452,2]
[342430625,1731853846653,-2000.0,0.00019452,2]
[342430626,1731853846663,-500.0,0.00019452,2]
[342430627,1731853846673,-789.29,0.00019452,2]
[342430628,1731853846683,-627.53,0.00019452,2]
[342430629,1731853846692,-500.0,0.00019452,2]
[342430630,1731853846702,-1603.31,0.00019452,2]
[342430631,1731853846712,-151.0,0.00019452,2]
[342430632,1731853846722,-273.48144,0.00019452,2]
[342430633,1731853846731,-760.49,0.00019452,2]
[342430634,1731853846741,-762.2,0.00019452,2]
[342430635,1731853846751,-715.5,0.00019452,2]
[342430636,1731853846761,-606.45,0.00019452,2]
[342430637,1731853846771,-500.0,0.00019452,2]
[342430638,1731853846780,-1058.75,0.00019452,2]
[342430639,1731853846790,-500.0,0.00019452,2]
[342430640,1731853846799,-500.0,0.00019452,2]
[342430641,1731853846808,-1136.79,0.00019452,2]
[342430642,1731853846818,-500.0,0.00019452,2]
[342430643,1731853846828,-1553.66,0.00019452,2]
[342430644,1731853846838,-500.0,0.00019452,2]
[342430645,1731853846848,-581.52,0.00019452,2]
[342430646,1731853846858,-500.0,0.00019452,2]
[342430647,1731853846867,-615.3,0.00019452,2]
[342430648,1731853846877,-500.0,0.00019452,2]
[342430649,1731853846890,-500.0,0.00019452,2]
[342430650,1731853846899,-1837.48,0.00019452,2]
[342430651,1731853846909,-500.0,0.00019452,2]
[342430652,1731853846922,-404.92198853,0.00019452,2]
[342430653,1731853846932,-500.0,0.00019452,2]
[342430654,1731853846941,-841.27,0.00019452,2]
[342430655,1731853846951,-500.0,0.00019452,2]
[342430656,1731853846960,-785.31,0.00019452,2]
[342430657,1731853846970,-500.0,0.00019452,2]
[342430658,1731853846979,-500.0,0.00019452,2]
[342430659,1731853846990,-500.0,0.00019452,2]
[342430660,1731853846999,-500.0,0.00019452,2]
[342430661,1731853847010,-500.0,0.00019452,2]
[342430662,1731853847020,-1030.18,0.00019452,2]
[342430663,1731853847029,-744.47,0.00019452,2]
[342430664,1731853847039,-500.0,0.00019452,2]
[342430665,1731853847048,-817.25,0.00019452,2]
[342430666,1731853847058,-711.15,0.00019452,2]
[342430667,1731853847067,-500.0,0.00019452,2]
[342430668,1731853847076,-246.28686363,0.00019452,2]
[342430669,1731853847085,-166.67466,0.00019452,2]
[342430670,1731853847095,-166.67466,0.00019452,2]
[342430671,1731853847104,-166.67466,0.00019452,2]
[342430672,1731853847114,-166.67466,0.00019452,2]
[342430673,1731853847123,-500.0,0.00019452,2]
[342430674,1731853847132,-784.72,0.00019452,2]
[342430675,1731853847149,-166.67466,0.00019452,2]
[342430676,1731853847159,-500.0,0.00019452,2]
[342430677,1731853847168,-166.67466,0.00019452,2]
[342430678,1731853847178,-166.67466,0.00019452,2]
[342430679,1731853847188,-166.674656,0.00019452,2]
[342430680,1731853847197,-614.87,0.00019452,2]
[342430681,1731853847207,-652.87,0.00019452,2]
[342430682,1731853847216,-500.0,0.00019452,2]
[342430683,1731853847225,-380.64164546,0.00019452,2]
[342430684,1731853847235,-879.92,0.00019452,2]
[342430685,1731853847244,-500.0,0.00019452,2]
[342430686,1731853847253,-500.0,0.00019452,2]
[342430687,1731853847263,-500.0,0.00019452,2]
[342430688,1731853847272,-500.0,0.00019452,2]
[342430689,1731853847281,-2876.07,0.00019452,2]
[342430690,1731853847291,-2744.59,0.00019452,2]
[342430691,1731853847300,-500.0,0.00019452,2]
[342430692,1731853847309,-500.0,0.00019452,2]
[342430693,1731853847319,-715.41,0.00019452,2]
[342430694,1731853847328,-500.0,0.00019452,2]
[342430695,1731853847338,-1280.67,0.00019452,2]
[342430696,1731853847347,-7461.06,0.00019452,2]
[342430697,1731853847357,-799.89,0.00019452,2]
[342430698,1731853847367,-500.0,0.00019452,2]
[342430699,1731853847377,-1417.95,0.00019452,2]
[342430700,1731853847392,-764.76,0.00019452,2]
[342430701,1731853847401,-1128.22390711,0.00019452,2]
[342430702,1731853847426,-3416.06609289,0.00019452,2]
[342430703,1731853847435,-889.44,0.00019452,2]
[342430704,1731853847445,-4878.28,0.00019452,2]
[342430705,1731853847455,-500.0,0.00019452,2]
[342430706,1731853847465,-692.87661239,0.00019452,2]
[342430707,1731853847947,-262.95795797,0.00019078,2]
[342430708,1731853847958,-1178.54338761,0.00019452,2]
[342430709,1731853847967,-214.44354319,0.00019452,2]
[342430710,1731853847979,-636.0,0.00019452,2]
[342430711,1731853847988,-500.0,0.00019452,2]
[342430712,1731853847999,-642.89,0.00019452,2]
[342430713,1731853848009,-500.0,0.00019452,2]
[342430714,1731853848019,-500.0,0.00019452,2]
[342430715,1731853848029,-500.0,0.00019452,2]
[342430716,1731853848039,-151.0,0.00019452,2]
[342430717,1731853848048,-151.0,0.00019452,2]
[342430718,1731853848058,-151.0,0.00019452,2]
[342430719,1731853848068,-1532.25,0.00019452,2]
[342430720,1731853848077,-151.0,0.00019452,2]
[342430721,1731853848087,-500.0,0.00019452,2]
[342430722,1731853848097,-500.0,0.00019452,2]
[342430723,1731853848107,-2076.15,0.00019452,2]
[342430724,1731853848116,-500.0,0.00019452,2]
[342430725,1731853848126,-500.0,0.00019452,2]
[342430726,1731853848136,-153.47758409,0.00019452,2]
[342430727,1731853848150,-580.14228642,0.00019452,2]
[342430728,1731853848159,-500.0,0.00019452,2]
[342430729,1731853848169,-621.43242547,0.00019452,2]
[342430730,1731853848179,-334.33861018,0.00019452,2]
[342430731,1731853848189,-1558.2,0.00019452,2]
[342430732,1731853848199,-500.0,0.00019452,2]
[342430733,1731853848209,-716.82,0.00019452,2]
[342430734,1731853848218,-362.32812681,0.00019452,2]
[342430735,1731853848314,-546.800005,0.00019452,2]
[342430736,1731853848326,-90.87186819,0.00019452,2]
[342430737,1731853848337,-2408.87,0.00019452,2]
[342430738,1731853848347,-179.97396292,0.00019452,2]
[342430739,1731853848357,-645.38,0.00019452,2]
[342430740,1731853848367,-5691.15561553,0.00019452,2]
[342430741,1731853848380,-17056.97438447,0.00019452,2]
[342430742,1731853848393,-738.98,0.00019452,2]
[342430743,1731853848402,-244.88398727,0.00019452,2]
[342430744,1731853848416,-302.88601273,0.00019452,2]
[342430745,1731853848426,-1436.89103783,0.00019452,2]
[342430746,1731853848437,-869.94591213,0.00019452,2]
[342430747,1731853848449,-641.99132785,0.00019452,2]
[342430748,1731853848461,-1640.15172219,0.00019452,2]
[342430749,1731853848471,-500.0,0.00019452,2]
[342430750,1731853848480,-97.36080717,0.00019452,2]
[342430751,1731853848662,-400.0,0.00018887,2]
[342430752,1731853848672,-4351.02919283,0.00019452,2]
[342430753,1731853848682,-908.92,0.00019452,2]
[342430754,1731853848692,-500.0,0.00019452,2]
[342430755,1731853848702,-1042.27,0.00019452,2]
[342430756,1731853848713,-978.56,0.00019452,2]
[342430757,1731853848723,-500.0,0.00019452,2]
[342430758,1731853848734,-500.0,0.00019452,2]
[342430759,1731853848743,-5037.5,0.00019452,2]
[342430760,1731853848753,-1135.18,0.00019452,2]
[342430761,1731853848763,-323.97478056,0.00019452,2]
[342430762,1731853848773,-1449.94,0.00019452,2]
[342430763,1731853848783,-500.0,0.00019452,2]
[342430764,1731853848793,-500.0,0.00019452,2]
[342430765,1731853848803,-500.0,0.00019452,2]
[342430766,1731853848813,-2382.71,0.00019452,2]
[342430767,1731853848823,-500.0,0.00019452,2]
[342430768,1731853848833,-500.0,0.00019452,2]
[342430769,1731853848842,-500.0,0.00019452,2]
[342430770,1731853848852,-507.49385529,0.00019452,2]
[342430771,1731853848862,-1144.29,0.00019452,2]
[342430772,1731853848871,-500.0,0.00019452,2]
[342430773,1731853848882,-523.0,0.00019452,2]
[342430774,1731853848895,-500.0,0.00019452,2]
[342430775,1731853848905,-500.0,0.00019452,2]
[342430776,1731853848919,-555.72250929,0.00019452,2]
[342430777,1731853848929,-500.0,0.00019452,2]
[342430778,1731853848940,-1350.65,0.00019452,2]
[342430779,1731853848950,-500.0,0.00019452,2]
[342430780,1731853848960,-151.0,0.00019452,2]
[342430781,1731853848971,-500.0,0.00019452,2]
[342430782,1731853848981,-281.103445,0.00019452,2]
[342430783,1731853848991,-1430.94,0.00019452,2]
[342430784,1731853849002,-941.59,0.00019452,2]
[342430785,1731853849013,-500.0,0.00019452,2]
[342430786,1731853849022,-500.0,0.00019452,2]
[342430787,1731853849032,-880.26,0.00019452,2]
[342430788,1731853849041,-500.0,0.00019452,2]
[342430789,1731853849051,-1026.84,0.00019452,2]
[342430790,1731853849061,-726.1,0.00019452,2]
[342430791,1731853849071,-471.78805974,0.00019452,2]
[342430792,1731853849080,-3708.46,0.00019452,2]
[342430793,1731853849089,-500.0,0.00019452,2]
[342430794,1731853849099,-500.0,0.00019452,2]
[342430795,1731853849108,-1895.73,0.00019452,2]
[342430796,1731853849118,-500.0,0.00019452,2]
[342430797,1731853849127,-1019.9,0.00019452,2]
[342430798,1731853849137,-3851.63,0.00019452,2]
[342430799,1731853849150,-758.73,0.00019452,2]
[342430800,1731853849160,-8923.84,0.00019452,2]
[342430801,1731853849170,-588.21,0.00019452,2]
[342430802,1731853849180,-500.0,0.00019452,2]
[342430803,1731853849190,-2689.28,0.00019452,2]
[342430804,1731853849200,-500.0,0.00019452,2]
[342430805,1731853849210,-1388.96,0.00019452,2]
[342430806,1731853849220,-1713.49,0.00019452,2]
[342430807,1731853849230,-500.0,0.00019452,2]
[342430808,1731853849241,-2828.42,0.00019452,2]
[342430809,1731853849251,-2249.24,0.00019452,2]
[342430810,1731853849260,-500.0,0.00019452,2]
[342430811,1731853849269,-500.0,0.00019452,2]
[342430812,1731853849279,-500.0,0.00019452,2]
[342430813,1731853849289,-1751.84,0.00019452,2]
[342430814,1731853849298,-500.0,0.00019452,2]
[342430815,1731853849307,-500.0,0.00019452,2]
[342430816,1731853849317,-500.0,0.00019452,2]
[342430817,1731853849327,-1318.44,0.00019452,2]
[342430818,1731853849336,-819.75,0.00019452,2]
[342430819,1731853849346,-18324.34,0.00019452,2]
[342430820,1731853849355,-4491.25,0.00019452,2]
[342430821,1731853849365,-1812.78,0.00019452,2]
[342430822,1731853849374,-20840.3,0.00019452,2]
[342430823,1731853849384,-539.69291177,0.00019452,2]
[342430824,1731853849398,-500.0,0.00019452,2]
[342430825,1731853849407,-6054.95,0.00019452,2]
[342430826,1731853849417,-750.16,0.00019452,2]
[342430827,1731853849428,-466.89901352,0.00019452,2]
[342430828,1731853849437,-500.0,0.00019452,2]
[342430829,1731853849447,-500.0,0.00019452,2]
[342430830,1731853849457,-500.0,0.00019452,2]
[342430831,1731853849467,-500.0,0.00019452,2]
[342430832,1731853849477,-1337.18,0.00019452,2]
[342430833,1731853849487,-168.13450157,0.00019452,2]
[342430834,1731853849497,-500.0,0.00019452,2]
[342430835,1731853849507,-1310.02,0.00019452,2]
[342430836,1731853849517,-500.0,0.00019452,2]
[342430837,1731853849527,-500.0,0.00019452,2]
[342430838,1731853849538,-500.0,0.00019452,2]
[342430839,1731853849548,-500.0,0.00019452,2]
[342430840,1731853849559,-18417.27,0.00019452,2]
[342430841,1731853849570,-859.83,0.00019452,2]
[342430842,1731853849580,-500.0,0.00019452,2]
[342430843,1731853849590,-2617.7,0.00019452,2]
[342430844,1731853849600,-748.55,0.00019452,2]
[342430845,1731853849610,-500.0,0.00019452,2]
[342430846,1731853849620,-500.0,0.00019452,2]
[342430847,1731853849629,-560.67,0.00019452,2]
[342430848,1731853849644,-1296.26,0.00019452,2]
[342430849,1731853849655,-232.08781248,0.00019452,2]
[342430850,1731853849664,-1321.76,0.00019452,2]
[342430851,1731853849674,-500.0,0.00019452,2]
[342430852,1731853849684,-500.0,0.00019452,2]
[342430853,1731853849929,-1363.2,0.00019452,2]
[342430854,1731853849944,-500.0,0.00019452,2]
[342430855,1731853849954,-749.23,0.00019452,2]
[342430856,1731853849965,-1163.12,0.00019452,2]
[342430857,1731853849975,-834.97,0.00019452,2]
[342430858,1731853849984,-500.0,0.00019452,2]
[342430859,1731853849994,-500.0,0.00019452,2]